fUST/lending_fUST_20250912
["ID","MTS","AMOUNT","RATE_DAILY","PERIOD"]
[384882107,1757613043660,-480.0,0.00013989,2]
[384882108,1757613043670,-406.2,0.00013989,2]
[384882109,1757613043679,-655.85,0.00013989,2]
[384882110,1757613043688,-480.0,0.00013989,2]
[384882111,1757613043698,-884.43,0.00013989,2]
[384882112,1757613043708,-1430.59,0.00013989,2]
[384882113,1757613043718,-227.46,0.00013989,2]
[384882114,1757613043727,-480.0,0.00013989,2]
[384882115,1757613043737,-823.76,0.00013989,2]
[384882116,1757613043747,-835.11,0.00013989,2]
[384882117,1757613043758,-480.0,0.00013989,2]
[384882118,1757613043768,-596.87,0.00013989,2]
[384882119,1757613043777,-2951.88,0.00013989,2]
[384882120,1757613043788,-943.99,0.00013989,2]
[384882121,1757613043798,-480.0,0.00013989,2]
[384882122,1757613043809,-493.89925505,0.00013989,2]
[384882123,1757613043818,-607.03,0.00013989,2]
[384882124,1757613043828,-480.0,0.00013989,2]
[384882125,1757613043837,-480.0,0.00013989,2]
[384882126,1757613043846,-480.0,0.00013989,2]
[384882127,1757613043855,-480.0,0.00013989,2]
[384882128,1757613043865,-480.0,0.00013989,2]
[384882129,1757613043874,-480.0,0.00013989,2]
[384882130,1757613043884,-480.0,0.00013989,2]
[384882131,1757613043894,-480.0,0.00013989,2]
[384882132,1757613043904,-896.44,0.00013989,2]
[384882133,1757613043915,-494.74,0.00013989,2]
[384882134,1757613043925,-480.0,0.00013989,2]
[384882135,1757613043935,-545.5,0.00013989,2]
[384882136,1757613043944,-1134.58,0.00013989,2]
[384882137,1757613043954,-2649.15896093,0.0001399,2]
[384882138,1757613043964,-30633.79134593,0.0001399,2]
[384882144,1757613046457,-650.998744,0.00013842,2]
[384882145,1757613046546,-965.34482281,0.00013842,2]
[384882146,1757613046556,-27126.27257182,0.0001399,2]
[384882147,1757613058833,601.19,0.00013715,2]
[384882148,1757613059586,480.0,0.00013715,2]
[384882149,1757613062613,175.2645587,0.00013711,2]
[384882150,1757613066254,480.0,0.00013715,2]
[384882151,1757613077366,5735.07,0.00013715,2]
[384882153,1757613095016,2705.89,0.00013715,2]
[384882154,1757613096007,480.0,0.00013715,2]
[384882155,1757613111495,514.29,0.00013715,2]
[384882156,1757613117750,556.45,0.00013715,2]
[384882157,1757613122007,480.0,0.00013715,2]
[384882158,1757613122037,480.0,0.00013715,2]
[384882159,1757613126921,160.0,7.8e-07,2]
[384882160,1757613127988,160.0,7.8e-07,2]
[384882161,1757613129089,160.0,7.8e-07,2]
[384882162,1757613130074,160.0,7.8e-07,2]
[384882163,1757613138306,715.85,0.00013715,2]
[384882164,1757613158558,480.0,0.00013715,2]
[384882165,1757613172123,821.73,0.00013715,2]
[384882166,1757613176179,865.32,0.00013715,2]
[384882167,1757613203291,381.708304,0.00013699,2]
[384882169,1757613222151,335.59277809,0.00013579,2]
[384882170,1757613226696,497.64,0.00013715,2]
[384882171,1757613227188,5496.11,0.00013715,2]
[384882172,1757613229080,480.0,0.00013715,2]
[384882173,1757613238116,1987.13,0.00013579,2]
[384882174,1757613239194,1040.03,0.00013715,2]
[384882175,1757613246306,480.0,0.00013715,2]
[384882176,1757613246708,480.0,0.00013715,2]
[384882177,1757613253093,647.79,0.00013715,2]
[384882178,1757613261096,474.78392971,0.00013579,2]
[384882179,1757613295790,480.0,0.00013715,2]
[384882180,1757613299888,686.02,0.00013715,2]
[384882181,1757613302383,300.0,0.00013715,2]
[384882182,1757613306154,612.0,0.00013715,2]
[384882183,1757613323586,480.0,0.00013715,2]
[384882184,1757613338712,2593.14,0.00013715,2]
[384882185,1757613367787,533.26,0.00013715,2]
[384882186,1757613375366,829.27,0.00013715,2]
[384882187,1757613395243,480.0,0.00013715,2]
[384882191,1757613423385,300.0,0.00013715,2]
[384882195,1757613428574,480.0,0.00013715,2]
[384882196,1757613432947,305.0,0.00013715,2]
[384882197,1757613434552,787.49,0.00013715,2]
[384882198,1757613437467,588.82,0.00013715,2]
[384882199,1757613442194,602.98181088,0.00013579,2]
[384882212,1757613530629,5267.1,0.00013715,2]
[384882213,1757613546621,960.0,0.00013579,2]
[384882214,1757613548313,480.0,0.00013715,2]
[384882218,1757613555955,960.0,0.00013579,2]
[384882219,1757613560377,993.30252675,0.00013616,2]
[384882220,1757613573230,229.3,0.00012329,2]
[384882221,1757613573355,2636.60221025,0.00013579,2]
[384882222,1757613582185,1039.58943451,0.00013579,2]
[384882223,1757613583968,691.2,0.00012329,2]
[384882224,1757613594426,848.89,0.00012329,2]
[384882225,1757613595547,657.44,0.00013715,2]
[384882229,1757613602429,269.0,0.00013715,2]
[384882230,1757613604939,917.14,0.00012329,2]
[384882231,1757613615462,959.37,0.00012329,2]
[384882232,1757613625989,977.91,0.00012329,2]
[384882233,1757613636473,814.93,0.00012329,2]
[384882234,1757613647161,679.1,0.00012329,2]
[384882236,1757613657863,565.92,0.00012329,2]
[384882237,1757613668365,471.6,0.00012329,2]
[384882238,1757613676105,480.0,0.00013715,2]
[384882239,1757613678505,480.0,0.00013715,2]
[384882240,1757613678925,393.0,0.00012329,2]
[384882242,1757613689381,410.83,0.00012329,2]
[384882243,1757613691811,480.0,0.00013715,2]
[384882245,1757613699868,509.03,0.00012329,2]
[384882246,1757613710399,604.11,0.00012329,2]
[384882247,1757613720850,686.58,0.00012329,2]
[384882248,1757613731345,681.79,0.00012329,2]
[384882249,1757613741915,657.09,0.00012329,2]
[384882250,1757613741966,180.89454327,0.00013579,2]
[384882251,1757613752311,5945.23213414,0.00028372,60]
[384882252,1757613752371,664.03,0.00012329,2]
[384882253,1757613762899,553.35,0.00012329,2]
[384882254,1757613773522,680.63,0.00012329,2]
[384882255,1757613784324,594.37,0.00012329,2]
[384882256,1757613794862,631.22,0.00012329,2]
[384882257,1757613805488,526.02,0.00012329,2]
[384882258,1757613811266,654.93256688,0.00013579,2]
[384882259,1757613815972,438.35,0.00012329,2]
[384882260,1757613819606,747.58679307,0.00013579,2]
[384882261,1757613826603,365.29,0.00012329,2]
[384882262,1757613837137,304.41,0.00012329,2]
[384882263,1757613843199,1207.80070693,0.00013579,2]
[384882264,1757613847617,253.67,0.00012329,2]
[384882265,1757613851615,841.6079894,0.00013579,2]
[384882266,1757613858113,211.39,0.00012329,2]
[384882267,1757613868595,176.16,0.00012329,2]
[384882268,1757613874295,2407.58760829,0.00013579,2]
[384882269,1757613879070,880.84,0.00012329,2]
[384882270,1757613896891,4089.97072097,0.00013579,2]
[384882271,1757613897595,166.526686,6.45e-05,2]
[384882272,1757613897986,166.526686,9.676e-05,2]
[384882273,1757613898219,166.526686,0.00012901,2]
[384882275,1757613921536,4210.02927903,0.00013579,2]
[384882276,1757613938054,2720.27299336,0.00013579,2]
[384882277,1757613946551,1879.72700664,0.00013579,2]
[384882278,1757613962359,2578.51487086,0.00013579,2]
[384882279,1757613970859,1956.99630462,0.00013579,2]
[384882280,1757613987699,897.00089999,0.00013579,2]
[384882281,1757613997361,3593.71961588,0.00013579,2]
[384882282,1757614005973,300.0,0.00013579,2]
[384882283,1757614013031,327.47,0.00012329,2]
[384882284,1757614014375,239.14395489,0.00013579,2]
[384882285,1757614022990,1536.82374632,0.00013579,2]
[384882286,1757614023568,272.89,0.00012329,2]
[384882287,1757614030860,948.8941879,0.00013579,2]
[384882288,1757614034113,227.41,0.00012329,2]
[384882289,1757614044665,189.51,0.00012329,2]
[384882290,1757614046761,1163.17625368,0.00013579,2]
[384882291,1757614055218,157.93,0.00012329,2]
[384882292,1757614065939,789.65,0.00012329,2]
[384882293,1757614069161,237.88714,0.00013334,2]
[384882294,1757614069499,328.68132566,0.00013334,2]
[384882297,1757614112942,1000.0,0.0001282,2]
[384882300,1757614151165,362.622888,0.00013699,2]
[384882304,1757614216795,2228.1187995,0.000129,2]
[384882321,1757614232549,-306.54281621,0.00013716,2]
[384882322,1757614232561,-173.45718379,0.00013716,2]
[384882323,1757614232570,-496.66,0.00013745,2]
[384882324,1757614232580,-448.0041266,0.00013746,2]
[384882325,1757614232592,-31.9958734,0.00013746,2]
[384882326,1757614232602,-424.48373302,0.00013746,2]
[384882327,1757614232621,-55.51626698,0.00013746,2]
[384882328,1757614232630,-480.0,0.00013746,2]
[384882329,1757614232639,-105.27585355,0.00013746,2]
[384882503,1757614240491,-480.0,0.00013746,2]
[384882505,1757614240501,-480.0,0.00013746,2]
[384882507,1757614240510,-480.0,0.00013746,2]
[384882509,1757614240519,-480.0,0.00013746,2]
[384882511,1757614240529,-1311.37,0.00013746,2]
[384882513,1757614240539,-500.04,0.00013746,2]
[384882515,1757614240548,-933.07,0.00013746,2]
[384882517,1757614240558,-480.0,0.00013746,2]
[384882519,1757614240567,-480.0,0.00013746,2]
[384882521,1757614240576,-480.0,0.00013746,2]
[384882523,1757614240585,-755.11,0.00013746,2]
[384882525,1757614240595,-547.13,0.00013746,2]
[384882527,1757614240604,-765.51,0.00013746,2]
[384882528,1757614240614,-480.0,0.00013746,2]
[384882529,1757614240623,-480.0,0.00013746,2]
[384882530,1757614240634,-480.0,0.00013746,2]
[384882531,1757614240643,-480.0,0.00013746,2]
[384882532,1757614240652,-480.0,0.00013746,2]
[384882533,1757614240661,-480.0,0.00013746,2]
[384882534,1757614240670,-2103.71702666,0.00013746,2]
[384882536,1757614243402,-453.90998057,0.00013746,2]
[384882537,1757614243507,-26.09001943,0.00013746,2]
[384882538,1757614243516,-25733.0091271,0.00013746,2]
[384882539,1757614243525,-492.87,0.00013747,2]
[384882540,1757614243534,-480.0,0.00013747,2]
[384882541,1757614243543,-480.0,0.00013747,2]
[384882542,1757614243552,-480.0,0.00013747,2]
[384882543,1757614243561,-564.28,0.00013747,2]
[384882544,1757614243571,-1465.91873267,0.00013889,2]
[384882545,1757614243580,-13542.24718617,0.00013981,2]
[384882547,1757614243588,-204.26293389,0.00013981,2]
[384882548,1757614243597,-2030.296672,0.00013981,2]
[384882549,1757614243606,-8893.3301662,0.00013986,2]
[384882550,1757614243615,-9573.6238771,0.00013986,2]
[384882551,1757614243624,-996.7,0.00013988,2]
[384882552,1757614243632,-620.8,0.00013988,2]
[384882553,1757614243642,-480.0,0.00013988,2]
[384882554,1757614243650,-2505.1,0.00013988,2]
[384882555,1757614243659,-511.04,0.00013988,2]
[384882556,1757614243668,-794.71,0.00013988,2]
[384882557,1757614243676,-754.68,0.00013988,2]
[384882558,1757614243685,-480.0,0.00013988,2]
[384882559,1757614243693,-151.0,0.00013989,2]
[384882560,1757614243702,-167.565293,0.00013989,2]
[384882561,1757614243711,-151.0,0.00013989,2]
[384882562,1757614243720,-151.981614,0.00013989,2]
[384882563,1757614243729,-480.0,0.00013989,2]
[384882564,1757614243738,-226.302497,0.00013989,2]
[384882565,1757614243748,-151.0,0.00013989,2]
[384882566,1757614243756,-431.72622187,0.00013989,2]
[384882567,1757614243766,-1726.9048875,0.00013989,2]
[384882568,1757614243774,-3885.53599687,0.00013989,2]
[384882569,1757614243784,-6907.61955,0.00013989,2]
[384882570,1757614243792,-151.0,0.00013989,2]
[384882571,1757614243801,-5047.64,0.00013989,2]
[384882572,1757614243811,-480.0,0.00013989,2]
[384882573,1757614243820,-151.0,0.00013989,2]
[384882574,1757614243829,-151.0,0.00013989,2]
[384882575,1757614243838,-630.04,0.00013989,2]
[384882576,1757614243847,-151.0,0.00013989,2]
[384882577,1757614243856,-151.0,0.00013989,2]
[384882578,1757614243865,-300.810602,0.00013989,2]
[384882579,1757614243875,-151.0,0.00013989,2]
[384882580,1757614243884,-480.0,0.00013989,2]
[384882581,1757614243894,-151.0,0.00013989,2]
[384882582,1757614243903,-480.0,0.0001399,2]
[384882583,1757614243912,-151.0,0.0001399,2]
[384882584,1757614243922,-151.0,0.0001399,2]
[384882585,1757614243931,-1305.0,0.0001399,2]
[384882586,1757614243940,-151.0,0.0001399,2]
[384882587,1757614243951,-151.0,0.0001399,2]
[384882588,1757614243960,-151.0,0.0001399,2]
[384882589,1757614243969,-151.0,0.0001399,2]
[384882590,1757614243978,-1305.0,0.0001399,2]
[384882591,1757614243987,-1305.0,0.0001399,2]
[384882592,1757614243997,-1305.0,0.0001399,2]
[384882594,1757614244006,-1305.0,0.0001399,2]
[384882596,1757614244015,-1305.0,0.0001399,2]
[384882598,1757614244024,-300.0,0.00013991,2]
[384882599,1757614244033,-300.0,0.00013991,2]
[384882601,1757614244042,-300.0,0.00013991,2]
[384882602,1757614244054,-300.0,0.00013991,2]
[384882603,1757614244063,-300.0,0.00013991,2]
[384882604,1757614244072,-300.0,0.00013991,2]
[384882606,1757614244096,-300.0,0.00013991,2]
[384882608,1757614244105,-300.0,0.00013991,2]
[384882609,1757614244114,-300.0,0.00013991,2]
[384882610,1757614244124,-300.0,0.00013991,2]
[384882611,1757614244133,-300.0,0.00013991,2]
[384882612,1757614244143,-300.0,0.00013991,2]
[384882613,1757614244152,-300.0,0.00013991,2]
[384882614,1757614244162,-300.0,0.00013991,2]
[384882615,1757614244171,-300.0,0.00013991,2]
[384882616,1757614244181,-600.0,0.00013991,2]
[384882617,1757614244191,-151.0,0.00013991,2]
[384882618,1757614244200,-151.0,0.00013991,2]
[384882619,1757614244209,-157.08916666,0.00013996,2]
[384882620,1757614244219,-157.0,0.00013996,2]
[384882621,1757614244229,-157.0,0.00013996,2]
[384882622,1757614244238,-157.0,0.00013996,2]
[384882623,1757614244247,-157.0,0.00013996,2]
[384882624,1757614244256,-157.0,0.00013996,2]
[384882625,1757614244265,-305.28749603,0.00013996,2]
[384882626,1757614244275,-157.0,0.00013996,2]
[384882627,1757614244284,-157.0,0.00013996,2]
[384882628,1757614244293,-500.0,0.00013996,2]
[384882629,1757614244303,-157.0,0.00013996,2]
[384882630,1757614244312,-157.0,0.00013996,2]
[384882631,1757614244321,-157.0,0.00013996,2]
[384882632,1757614244331,-157.0,0.00013996,2]
[384882633,1757614244340,-157.0,0.00013996,2]
[384882634,1757614244349,-157.0,0.00013996,2]
[384882635,1757614244358,-157.0,0.00013996,2]
[384882636,1757614244367,-500.0,0.00013996,2]
[384882637,1757614244378,-157.0,0.00013996,2]
[384882638,1757614244387,-157.0,0.00013996,2]
[384882639,1757614244396,-500.0,0.00013996,2]
[384882640,1757614244406,-155.0,0.00013999,2]
[384882641,1757614244416,-151.0,0.00013999,2]
[384882642,1757614244425,-10315.38155232,0.00014,2]
[384882643,1757614244434,-302.0,0.00014003,2]
[384882644,1757614244444,-292.0,0.00014006,2]
[384882645,1757614244453,-496.66,0.00014019,2]
[384882646,1757614244462,-480.0,0.0001402,2]
[384882647,1757614244471,-480.0,0.0001402,2]
[384882648,1757614244480,-480.0,0.0001402,2]
[384882649,1757614244489,-151.0,0.0001402,2]
[384882650,1757614244498,-480.0,0.0001402,2]
[384882651,1757614244507,-480.0,0.0001402,2]
[384882652,1757614244515,-1311.37,0.0001402,2]
[384882653,1757614244525,-500.04,0.0001402,2]
[384882654,1757614244534,-933.07,0.0001402,2]
[384882655,1757614244543,-276.909,0.0001402,2]
[384882656,1757614244552,-480.0,0.0001402,2]
[384882657,1757614244561,-480.0,0.0001402,2]
[384882658,1757614244570,-480.0,0.0001402,2]
[384882659,1757614244579,-755.11,0.0001402,2]
[384882660,1757614244588,-547.13,0.0001402,2]
[384882661,1757614244597,-765.51,0.0001402,2]
[384882662,1757614244606,-480.0,0.0001402,2]
[384882663,1757614244616,-480.0,0.0001402,2]
[384882664,1757614244625,-480.0,0.0001402,2]
[384882665,1757614244634,-480.0,0.0001402,2]
[384882666,1757614244643,-480.0,0.0001402,2]
[384882667,1757614244652,-151.0,0.0001402,2]
[384882668,1757614244661,-480.0,0.0001402,2]
[384882669,1757614244670,-480.0,0.0001402,2]
[384882670,1757614244679,-492.87,0.00014021,2]
[384882671,1757614244688,-480.0,0.00014021,2]
[384882672,1757614244698,-480.0,0.00014021,2]
[384882673,1757614244708,-480.0,0.00014021,2]
[384882674,1757614244718,-564.28,0.00014021,2]
[384882675,1757614244728,-160.0,0.00014054,2]
[384882676,1757614244738,-160.0,0.00014054,2]
[384882677,1757614244748,-160.0,0.00014054,2]
[384882678,1757614244758,-160.0,0.00014054,2]
[384882679,1757614244767,-417.15472785,0.00014058,2]
[384882680,1757614244777,-846.96613202,0.00014058,2]
[384882681,1757614244787,-233.10680167,0.00014058,2]
[384882682,1757614244797,-530.95967032,0.00014058,2]
[384882683,1757614244806,-160.0,0.00014058,2]
[384882684,1757614244815,-217.69300629,0.00014058,2]
[384882685,1757614244826,-160.0,0.00014058,2]
[384882686,1757614244835,-292.0,0.00014065,2]
[384882687,1757614244845,-155.0,0.00014085,2]
[384882688,1757614244854,-292.0,0.00014114,2]
[384882689,1757614244863,-292.0,0.00014148,2]
[384882690,1757614244872,-292.0,0.0001416,2]
[384882691,1757614244881,-292.0,0.00014215,2]
[384882692,1757614244892,-6000.0,0.00014226,2]
[384882693,1757614244902,-200.0,0.0001424,3]
[384882694,1757614244911,-8000.0,0.00014262,2]
[384882695,1757614244920,-996.7,0.00014262,2]
[384882696,1757614244930,-620.8,0.00014262,2]
[384882697,1757614244939,-480.0,0.00014262,2]
[384882698,1757614244948,-2505.1,0.00014262,2]
[384882699,1757614244957,-511.04,0.00014262,2]
[384882700,1757614244966,-794.71,0.00014262,2]
[384882701,1757614244975,-754.68,0.00014262,2]
[384882702,1757614244985,-480.0,0.00014262,2]
[384882703,1757614244994,-480.0,0.00014263,2]
[384882704,1757614245003,-5047.64,0.00014263,2]
[384882705,1757614245012,-480.0,0.00014263,2]
[384882706,1757614245022,-630.04,0.00014263,2]
[384882707,1757614245031,-480.0,0.00014263,2]
[384882708,1757614245040,-480.0,0.00014264,2]
[384882709,1757614245053,-284.29137263,0.0001427,2]
[384882710,1757614245062,-157.0,0.0001427,2]
[384882711,1757614245072,-157.0,0.0001427,2]
[384882712,1757614245082,-500.0,0.0001427,2]
[384882713,1757614245092,-157.0,0.0001427,2]
[384882714,1757614245102,-238.85481629,0.0001427,2]
[384882715,1757614245111,-157.0,0.0001427,2]
[384882716,1757614245122,-186.0,0.0001427,2]
[384882717,1757614245131,-157.0,0.0001427,2]
[384882718,1757614245141,-157.0,0.0001427,2]
[384882719,1757614245151,-157.0,0.0001427,2]
[384882720,1757614245160,-500.0,0.0001427,2]
[384882721,1757614245169,-157.0,0.0001427,2]
[384882722,1757614245179,-529.0,0.0001427,2]
[384882723,1757614245188,-424.96713111,0.00014272,2]
[384882773,1757614246502,-448.15660062,0.00013903,2]
[384882774,1757614246511,-5575.03286889,0.00014272,2]
[384882776,1757614246520,-2536.81053037,0.00014279,2]
[384883135,1757614265311,4147.1118572,0.00013304,2]
[384883136,1757614315690,175.2645587,0.00013608,2]
[384883139,1757614405586,331.78,0.00013715,2]
[384883140,1757614408042,480.0,0.00013715,2]
[384883141,1757614421692,480.0,0.00013715,2]
[384883142,1757614428008,175.552699,0.00013196,2]
[384883143,1757614430060,2200.01,0.00013608,2]
[384883144,1757614434058,480.0,0.00013715,2]
[384883145,1757614434413,565.36,0.00013715,2]
[384883146,1757614437345,480.0,0.00013715,2]
[384883147,1757614443347,480.0,0.00013715,2]
[384883149,1757614453281,1927.44462741,0.00013608,2]
[384883150,1757614460806,480.0,0.00013715,2]
[384883153,1757614477468,1500.0,0.00013608,2]
[384883154,1757614479660,481.71795782,0.00013715,2]
[384883155,1757614486669,163.73,0.00012329,2]
[384883156,1757614497086,818.68,0.00012329,2]
[384883161,1757614507788,818.68,0.00012329,2]
[384883162,1757614517450,480.0,0.00013715,2]
[384883163,1757614519495,480.0,0.00013715,2]
[384883164,1757614525551,5625.14504679,0.0001442,7]
[384883165,1757614529217,480.0,0.00013715,2]
[384883172,1757614648388,480.0,0.00013715,2]
[384883173,1757614663852,480.0,0.00013715,2]
[384883174,1757614687855,480.0,0.00013715,2]
[384883175,1757614690343,480.0,0.00013715,2]
[384883176,1757614707202,152.49321819,0.00013645,2]
[384883177,1757614729856,480.0,0.00013715,2]
[384883178,1757614751826,480.0,0.00013715,2]
[384883179,1757614753973,481.71513019,0.00013715,2]
[384883180,1757614756060,666.0,0.00012934,2]
[384883181,1757614787585,480.0,0.00013715,2]
[384883182,1757614821781,480.0,0.00013715,2]
[384883183,1757614842274,3384.6877574,0.00012805,2]
[384883186,1757614928859,358.52528048,0.00013646,2]
[384883189,1757615024371,2265.4028278,0.00012804,2]
[384883192,1757615104553,397.22725,0.00013699,2]
[384883196,1757615136758,1000.0,0.00012745,2]
[384883199,1757615153968,168.0,0.00013656,2]
[384883204,1757615187807,681.0019812,0.00012745,2]
[384883207,1757615269196,286.8202244,0.00013646,2]
[384883208,1757615270859,220.9975094,0.00013333,2]
[384883210,1757615281935,5804.0039549,0.00012745,2]
[384883211,1757615296362,418.18938481,0.00010618,2]
[384883212,1757615298344,10000.01,0.000125,2]
[384883213,1757615298367,1466.35404719,0.000125,2]
[384883214,1757615312040,284.77289931,0.0001,2]
[384883215,1757615319609,10000.01,0.00013,2]
[384883216,1757615319630,10000.01,0.00013,2]
[384883217,1757615319772,10000.01,0.00013,2]
[384883218,1757615319793,10000.01,0.00013,2]
[384883219,1757615319814,9781.838819,0.00013,2]
[384883220,1757615321475,218.171181,0.0001,2]
[384883221,1757615321497,781.828819,0.0001,2]
[384883222,1757615326958,9218.181181,0.0001,2]
[384883223,1757615326980,8462.94724668,0.0001,2]
[384883224,1757615328143,1537.06275332,0.0001,2]
[384883225,1757615328165,10000.01,0.0001,2]
[384883226,1757615328186,10000.01,0.0001,2]
[384883227,1757615328210,10000.01,0.0001,2]
[384883228,1757615328231,9095.3993281,0.0001,2]
[384883230,1757615328491,904.6106719,0.0001,2]
[384883231,1757615328512,821.78648025,0.0001,2]
[384883232,1757615350532,272.31,0.00012329,2]
[384883233,1757615356205,300.0,0.00013599,2]
[384883234,1757615365415,300.0,0.00013599,2]
[384883235,1757615374025,300.0,0.00013599,2]
[384883236,1757615382491,300.0,0.00013599,2]
[384883237,1757615391289,300.0,0.00013599,2]
[384883241,1757615400057,300.0,0.00013599,2]
[384883242,1757615408732,1500.0,0.00013599,2]
[384883243,1757615417077,1500.0,0.00013599,2]
[384883244,1757615425862,993.7921082,0.00013599,2]
[384883245,1757615426554,10000.01,0.00013645,2]
[384883246,1757615426578,10000.01,0.00013645,2]
[384883247,1757615426601,5186.85513187,0.00013645,2]
[384883523,1757615434123,1500.0,0.00013599,2]
[384883784,1757615437710,-300.0,0.00013736,2]
[384883786,1757615437719,-209.32012587,0.00013736,2]
[384883788,1757615437731,-725.02279502,0.00013736,2]
[384883792,1757615437762,-265.65707911,0.00013736,2]
[384883793,1757615437772,-480.0,0.00013737,2]
[384883794,1757615437781,-480.0,0.00013737,2]
[384883795,1757615437790,-480.0,0.00013737,2]
[384883796,1757615437800,-480.0,0.00013737,2]
[384883797,1757615437809,-875.32,0.00013737,2]
[384883798,1757615437818,-1357.14,0.00013737,2]
[384883799,1757615437828,-480.0,0.00013737,2]
[384883800,1757615437837,-480.0,0.00013737,2]
[384883801,1757615437847,-480.0,0.00013737,2]
[384883802,1757615437856,-480.0,0.00013737,2]
[384883803,1757615437865,-480.0,0.00013737,2]
[384883804,1757615437875,-815.21,0.00013737,2]
[384883805,1757615437884,-809.16,0.00013737,2]
[384883806,1757615437894,-490.79,0.00013737,2]
[384883807,1757615437905,-480.0,0.00013737,2]
[384883808,1757615437914,-480.0,0.00013737,2]
[384883809,1757615437923,-581.8,0.00013737,2]
[384883810,1757615437933,-480.0,0.00013737,2]
[384883811,1757615437942,-480.0,0.00013737,2]
[384883812,1757615437951,-480.0,0.00013737,2]
[384883813,1757615437961,-480.0,0.00013737,2]
[384883814,1757615437970,-480.0,0.00013737,2]
[384883815,1757615437980,-480.0,0.00013737,2]
[384883816,1757615437989,-480.0,0.00013737,2]
[384883817,1757615437999,-480.0,0.00013737,2]
[384883818,1757615438008,-480.0,0.00013737,2]
[384883819,1757615438017,-480.0,0.00013737,2]
[384883820,1757615438027,-480.0,0.00013737,2]
[384883821,1757615438036,-480.0,0.00013737,2]
[384883822,1757615438046,-606.43,0.00013737,2]
[384883823,1757615438055,-480.0,0.00013737,2]
[384883824,1757615438064,-557.54,0.00013737,2]
[384883825,1757615438073,-480.0,0.00013737,2]
[384883826,1757615438199,-480.0,0.00013737,2]
[384883827,1757615438209,-480.0,0.00013737,2]
[384883828,1757615438219,-547.63,0.00013737,2]
[384883829,1757615438228,-480.0,0.00013737,2]
[384883830,1757615438238,-207.74978189,0.00013737,2]
[384883831,1757615438250,-279.3165923,0.00013737,2]
[384883832,1757615438260,-480.0,0.00013737,2]
[384883833,1757615438269,-480.0,0.00013737,2]
[384883834,1757615438279,-480.0,0.00013737,2]
[384883835,1757615438288,-480.0,0.00013737,2]
[384883836,1757615438298,-480.0,0.00013737,2]
[384883837,1757615438307,-540.26,0.00013737,2]
[384883838,1757615438316,-542.46,0.00013737,2]
[384883839,1757615438326,-480.0,0.00013737,2]
[384883840,1757615438335,-480.0,0.00013737,2]
[384883841,1757615438344,-480.0,0.00013737,2]
[384883842,1757615438354,-480.0,0.00013737,2]